Cogmind - Beta 13 @@@ ROGUE MODE // 2024.03.09 @ 15:13:59 Player: Mogwok Wargfriend Result: Destroyed by G-47 Trooper with Particle Gun Performance ------------- Evolutions (3) 1500 Regions Visited (6) 1200 Robots Destroyed (146) 730 Value Destroyed (6051) 6051 Prototype IDs (7) 140 Alien Tech Used (0) 0 Bonus (1633) 1633 TOTAL SCORE: 11254 Bonus ------- High Alert Combat Kills 830 Follower Combat Kills 122 Entered Garrisons 200 Used RIF Installer 500 Friendly Fire -19 Cogmind --------- Core Integrity 0/700 Matter 29/300 Energy 98/100 System Corruption 26% Temperature Cool (9) Movement Core (50) Location -7/Factory Parts ------- > --- POWER (1) -------- (None) > --- PROPULSION (4) --- Medium Treads Aluminum Leg Carbon-fiber Leg Airjet > --- UTILITY (6) ------ Hacking Suite System Shield Relay Coupler [NC] (26) Relay Coupler [Grunt] (15) > --- WEAPON (2) ------- (None) > --- INVENTORY (5) ---- Hybrid Deuterium Engine Medium Storage Unit Relay Coupler [NC] (26) Relay Coupler [Grunt] (25) Relay Coupler [Grunt] (22) Peak State ------------ > --- POWER ------------ Improved Deuterium Engine > --- PROPULSION ------- Aluminum Leg VSS Leg Myomer Leg Centrium Wheel > --- UTILITY ---------- Improved Heat Sink Medium Storage Unit Improved Targeting Computer Improved Armor Integrity Analyzer Hardened Medium Armor Plating Improved Shield Generator > --- WEAPON ----------- Railgun Heavy Gauss Cannon > --- INVENTORY -------- Antimatter Reactor Aluminum Leg ECM Suite Hardened Medium Armor Plating Hacking Suite System Shield Relay Coupler [Swarmer] Relay Coupler [Grunt] Relay Coupler [Grunt] High-powered Shotgun [Rating: 59] Favorites ----------- Power Improved Deuterium Engine Engine Improved Deuterium Engine Power Core Light Nuclear Core Reactor Antimatter Reactor Propulsion Aluminum Leg Treads Medium Treads Leg Aluminum Leg Wheel Centrium Wheel Hover Unit Airjet Utility Medium Storage Unit Device Improved Heat Sink Storage Medium Storage Unit Processor Advanced Targeting Computer Hackware Relay Coupler [NC] Protection Hardened Medium Armor Plating Weapon Advanced Beam Cannon Energy Gun Particle Gun Energy Cannon Advanced Beam Cannon Ballistic Gun Minigun Ballistic Cannon Improved Light Cannon Launcher Grenade Launcher Special Weapon Remote Datajack Slashing Weapon Greatsword Build | -11 -10 -9 -8 -7 -7 -7 ------- Run | Yrd Mat Mat Mat Fac Gar Fac Slots Evolved 6 | . . 2 2 2 . . Power . | . . . . . . . Propulsion 2 | . . 1 . 1 . . Utility 4 | . . 1 2 1 . . Weapon . | . . . . . . . Parts Attached 154 | 6 8 26 14 23 56 21 Power 16 | 1 . 3 . 3 4 5 Engine 13 | 1 . 2 . 3 3 4 Core 2 | . . 1 . . . 1 Reactor 1 | . . . . . 1 . Propulsion 50 | 2 2 8 6 8 18 6 Treads 5 | . . 1 . 2 . 2 Leg 41 | 2 2 7 6 5 16 3 Wheel 1 | . . . . . 1 . Hover 3 | . . . . 1 1 1 Flight . | . . . . . . . Utility 42 | 1 2 6 7 5 15 6 Device 16 | . . 4 2 2 5 3 Storage 2 | 1 1 . . . . . Processor 8 | . 1 1 2 1 2 1 Hackware 4 | . . . . . 2 2 Protection 12 | . . 1 3 2 6 . Artifact . | . . . . . . . Weapon 46 | 2 4 9 1 7 19 4 Energy Gun 15 | . 2 1 . 4 8 . Energy Cannon 2 | . . 2 . . . . Ballistic Gun 17 | 2 1 3 . 2 7 2 Ballistic Cannon 5 | . 1 1 1 . 2 . Launcher 3 | . . 2 . . 1 . Special Weapon 3 | . . . . . 1 2 Impact Weapon . | . . . . . . . Slashing Weapon 1 | . . . . 1 . . Piercing Weapon . | . . . . . . . Special Melee Weapon . | . . . . . . . Unidentified Prototypes 3 | . . 3 . . . . Corrupted Parts 4 | . . . . 2 2 . System Corruption 16 | . . . . 8 8 . Parts Lost 43 | . . 3 4 8 23 5 Power 5 | . . . . 2 2 1 Propulsion 17 | . . 1 1 4 8 3 Utility 10 | . . 1 2 . 7 . Weapon 11 | . . 1 1 2 6 1 Highest Loss Streak 6 | . . 2 2 2 6 4 To Critical Strikes . | . . . . . . . Average Slot Usage (%) 95 | . 95 98 98 94 96 80 Engine 7 | . 14 10 9 7 4 3 Treads 1 | . . . . 6 . 1 Leg 27 | . 28 32 27 20 28 18 Device 8 | . . 14 9 7 7 4 Storage 8 | . 14 11 9 7 7 4 Processor 13 | . 10 6 16 22 15 7 Hackware 2 | . . . . . 2 25 Protection 4 | . . . 9 5 7 . Energy Gun 4 | . 10 2 . 6 4 4 Energy Cannon 3 | . . 8 9 . . . Ballistic Gun 4 | . 7 6 . 2 4 2 Ballistic Cannon 4 | . 9 1 8 4 3 . Naked Turns . | . . . . . . . Heaviest Build 55 | 13 20 27 41 38 55 35 Greatest Support 64 | 20 20 37 49 50 64 52 Greatest Overweight (x) 5 | . . 1 1 1 1 5 Average Overweight (x) . | . . . . . . . Largest Inventory Capacity 10 | 8 10 10 10 10 10 10 Average Capacity 9 | 6 8 10 10 10 10 8 Most Carried 10 | 6 9 10 10 10 10 10 Average Carried 9 | 3 7 9 9 9 9 7 Final Capacity 10 | 8 10 10 10 10 10 5 Final Carried 10 | 6 9 10 8 10 10 5 Class Distribution -------------------- 57% | Mutant 39% | Scavenger-Mutant Dominant Class ---------------- Scavenger-Mutant | -10/Materials Mutant | -9/Materials Mutant | -8/Materials Mutant | -7/Factory Scavenger-Mutant | -7/Garrison Scavenger-Mutant | -7/Factory Resources | -11 -10 -9 -8 -7 -7 -7 ----------- Run | Yrd Mat Mat Mat Fac Gar Fac Matter Collected 4277 | 201 580 887 529 365 1622 93 Remotely . | . . . . . . . Salvage Created 5070 | . 650 1821 1044 342 1135 78 Parts 272 | . 28 109 50 22 61 2 Haulers Intercepted 9 | . 2 6 . 1 . . Recyclers Shooed 7 | . 3 2 1 1 . . Parts Field Recycled . | . . . . . . . Retrieved Matter . | . . . . . . . Parts Self-Destructed . | . . . . . . . Prevented . | . . . . . . . Kills | -11 -10 -9 -8 -7 -7 -7 ------- Run | Yrd Mat Mat Mat Fac Gar Fac Combat Hostiles Destroyed 104 | . 9 34 21 7 31 2 Guns 33 | . 3 7 . 5 17 1 Cannons 51 | . 6 16 19 1 9 . AOE 17 | . . 11 . 1 4 1 Classes Destroyed 16 | . 6 5 2 1 2 . Worker 6 | . 1 3 2 . . . Builder 2 | . . 2 . . . . Tunneler 1 | . . 1 . . . . Hauler 9 | . 2 6 . 1 . . Recycler 6 | . 2 2 1 1 . . Mechanic 1 | . . 1 . . . . Operator 5 | . 1 2 2 . . . Watcher 12 | . 3 5 3 1 . . Swarmer 7 | . . 3 . . 4 . Grunt 68 | . 9 23 15 . 19 2 Brawler 1 | . . . 1 . . . Duelist 1 | . . . . . 1 . Sentry 14 | . . 8 3 2 1 . Specialist 4 | . . . . . 4 . Hunter 6 | . . . 2 3 1 . Programmer 3 | . . . . 2 1 . Best Kill Streak 9 | . 4 9 5 2 4 2 Combat Bots Only 6 | . 2 6 4 2 4 2 Max Kills in Single Turn 3 | . 2 3 1 1 1 1 Gunslinging . | . . . . . . . Exploded 2 | . . 2 . 1 1 1 Melee . | . . . . . . . Uniques/NPCs Destroyed . | . . . . . . . Combat | -11 -10 -9 -8 -7 -7 -7 -------- Run | Yrd Mat Mat Mat Fac Gar Fac Hostile Shots Fired 897 | . 34 151 136 150 385 41 Missed 319 | . 9 49 47 67 126 21 Damage Taken 8110 | . 350 1208 1370 1280 3207 695 Core 1195 | . 66 176 245 189 299 220 Absorbed by Shields 333 | . . 136 . . 197 . Regen/Repaired (Parts) 74 | . . 12 . . . 62 Core Remaining (%) 71 | 100 73 56 55 . . . Volleys Fired 486 | . 53 134 93 39 147 20 Largest 2 | . 2 2 2 2 2 2 Hottest 126 | . 100 107 112 124 126 73 Shots Fired 844 | . 105 217 186 77 236 23 Gun 366 | . 58 79 . 43 170 16 Cannon 424 | . 47 103 186 34 54 . Launcher 47 | . . 35 . . 12 . Special 7 | . . . . . . 7 Kinetic 428 | . 74 71 93 40 148 2 Thermal 295 | . 31 111 93 27 33 . Explosive 47 | . . 35 . . 12 . Electromagnetic 67 | . . . . 10 43 14 Robot Hit Streak 40 | . 5 9 16 11 40 7 Robot Miss Streak 5 | . 4 3 5 4 4 3 Penetration Max . | . . . . . . . Secondary Targets 3 | . . . . . 3 . Max Gunslinging Chain 1 | . . . . . 1 . Shots Hit Robots 500 | . 50 134 111 64 127 14 Core Hits 251 | . 25 83 45 23 70 5 Critical Kills 4 | . . . 2 . 2 . Critical Parts Destroyed 2 | . 1 1 . . . . Critical Strikes 21 | . 4 3 6 2 6 . Burn 6 | . 2 2 . . 2 . Meltdown 2 | . . . 2 . . . Destroy 4 | . 1 1 . . 2 . Blast 8 | . 1 . 4 2 1 . Corrupt 1 | . . . . . 1 . Melee Attacks . | . . . . . . . Impact . | . . . . . . . Slashing . | . . . . . . . Piercing . | . . . . . . . Sneak Attacks . | . . . . . . . Combat Hostiles . | . . . . . . . Follow-up Attacks . | . . . . . . . Damage Inflicted 12150 | . 881 3773 2365 1439 3178 514 Guns 3890 | . 409 882 . 749 1710 140 Cannons 5508 | . 472 1354 2365 595 722 . Explosions 2731 | . . 1534 . 95 746 356 Melee . | . . . . . . . Ramming 21 | . . 3 . . . 18 Kinetic 5266 | . 673 889 1177 677 1823 27 Thermal 3964 | . 208 1347 1188 672 193 356 Explosive 2280 | . . 1534 . . 746 . Electromagnetic 619 | . . . . 90 416 113 Impact . | . . . . . . . Slashing . | . . . . . . . Piercing . | . . . . . . . Highest Corruption 26 | . 2 . . 10 25 26 Average Corruption 16 | . 1 . . 6 22 25 Corruption Purged . | . . . . . . . Corruption Blocked . | . . . . . . . Effects 232 | . 12 . . 36 154 30 Message Errors 59 | . 5 . . 12 36 6 Matter Fused 54 | . 4 . . 4 39 7 Heat Flow Errors 21 | . 1 . . 2 16 2 Energy Discharges 26 | . 1 . . 5 15 5 Parts Rejected 4 | . . . . 1 2 1 Parts Fused 2 | . . . . . 2 . Data Loss (minor) 26 | . 1 . . 3 18 4 Data Loss (major) 10 | . . . . 4 5 1 Misfires 8 | . . . . 2 5 1 Alerts 7 | . . . . 3 4 . Misdirections 4 | . . . . . 1 3 Weapon Failures 11 | . . . . . 11 . Overload Shots . | . . . . . . . Overflow Damage 257 | . . 12 21 30 1 193 Projectiles 58 | . . 6 21 30 1 . Explosions 199 | . . 6 . . . 193 Melee . | . . . . . . . Knockbacks 30 | . 5 1 14 4 6 . Impact . | . . . . . . . Kinetic 30 | . 5 1 14 4 6 . Secondary . | . . . . . . . Self-Inflicted Damage 461 | . . . . . 124 337 Shots 12 | . . . . . 8 4 Rammed 2 | . . . . . . 2 Targets Rammed 3 | . . 1 . . . 2 Kicked 1 | . . 1 . . . . Crushed . | . . . . . . . Highest Temperature 319 | . 267 33 239 165 319 218 Average Temperature 58 | . 72 8 38 31 80 48 Received Heat Transfer 3004 | . 228 571 666 126 1224 189 Siege Activations . | . . . . . . . Robots Corrupted . | . . . . . . . Combat Hostiles . | . . . . . . . Parts Fried 1 | . . . . . 1 . Impact Corruptions . | . . . . . . . Robots Melted 3 | . . . 2 . 1 . Combat Hostiles 3 | . . . 2 . 1 . Parts Melted 10 | . 2 1 5 1 1 . Heat Transferred 7543 | . 629 2664 2146 1312 592 200 Parts Sabotaged . | . . . . . . . Parts Stolen . | . . . . . . . Parts Stripped . | . . . . . . . Power Chain Reactions 3 | . . . . 2 . 1 Alert | -11 -10 -9 -8 -7 -7 -7 ------- Run | Yrd Mat Mat Mat Fac Gar Fac Peak Influence 1981 | . 132 784 484 328 1981 1134 Initial 1039 | . . 36 263 205 13 1039 Average 539 | . 70 497 379 138 929 1045 Maximum Alert Level 5 | . . 3 2 1 5 4 Low Security (%) 29 | 100 100 10 . 73 11 . Level 1 16 | . . 17 46 26 8 . Level 2 24 | . . 51 53 . 19 . Level 3 15 | . . 20 . . 19 75 Level 4 9 | . . . . . 24 24 Level 5 4 | . . . . . 15 . High Security . | . . . . . . . Max Security . | . . . . . . . Squads Dispatched 20 | . 3 6 5 2 . 4 Investigation 9 | . 2 3 3 . . 1 Extermination 2 | . . . . 2 . . Reinforcement 8 | . 1 3 2 . . 2 Assault 1 | . . . . . . 1 Garrison . | . . . . . . . Intercept . | . . . . . . . Searches Triggered . | . . . . . . . Construction Impeded 1 | . . . 1 . . . Haulers Reinforced . | . . . . . . . Active Scanning Responses . | . . . . . . . Cargo Convoy Interrupts . | . . . . . . . Stealth | -11 -10 -9 -8 -7 -7 -7 --------- Run | Yrd Mat Mat Mat Fac Gar Fac Distress Signals 11 | . 1 5 5 . . . Communications Jammed . | . . . . . . . Distress Signals . | . . . . . . . Times Spotted 158 | . 14 44 37 11 36 16 Peak Tracking Total 6 | . 3 6 4 2 6 5 Tactical Retreats 7 | . . 2 1 . 3 1 Traps | -11 -10 -9 -8 -7 -7 -7 ------- Run | Yrd Mat Mat Mat Fac Gar Fac Traps Triggered 11 | . 2 3 1 2 2 1 Indirectly . | . . . . . . . Trap Hack Attempts . | . . . . . . . Triggered . | . . . . . . . Disarmed . | . . . . . . . Reprogrammed . | . . . . . . . Reused . | . . . . . . . Traps Extracted . | . . . . . . . Installed . | . . . . . . . Triggered . | . . . . . . . Machines | -11 -10 -9 -8 -7 -7 -7 ---------- Run | Yrd Mat Mat Mat Fac Gar Fac Machines Disabled 22 | . . 6 2 . 10 4 Max in Single Turn 4 | . . 1 1 . 1 4 Garrison Relay 5 | . . . . . 5 . Machines Repaired . | . . . . . . . Machines Dismantled . | . . . . . . . Machines Sabotaged . | . . . . . . . Overloaded Fab Kills . | . . . . . . . Hacking | -11 -10 -9 -8 -7 -7 -7 --------- Run | Yrd Mat Mat Mat Fac Gar Fac Machines Accessed 39 | . 6 11 6 7 3 6 Terminals 27 | . 5 9 6 2 3 2 Fabricators 1 | . . . . . . 1 Repair Stations 5 | . 1 1 . 2 . 1 Recycling Units 3 | . . . . 1 . 2 Scanalyzers 1 | . . 1 . . . . Garrison Access 2 | . . . . 2 . . Total Hacks 110 | . 17 36 18 19 5 15 Successful 35 | . 1 13 6 4 2 9 Failed 75 | . 16 23 12 15 3 6 Catastrophic 20 | . 3 7 4 2 1 3 Database Lockouts . | . . . . . . . Manual 73 | . 13 28 16 8 2 6 Terminals 82 | . 14 31 18 9 5 5 Fabricators 1 | . . . . . . 1 Repair Stations 15 | . 3 2 . 6 . 4 Recycling Units 6 | . . . . 1 . 5 Scanalyzers 3 | . . 3 . . . . Garrison Access 3 | . . . . 3 . . Terminal Hacks 11 | . . 7 2 1 1 . Robot Analysis 1 | . . . . 1 . . Prototype ID Bank 2 | . . 1 1 . . . Open Door 1 | . . . . . 1 . Emergency Access Points 1 | . . 1 . . . . Alert Level 2 | . . 2 . . . . Unreport Threat 3 | . . 2 1 . . . Investigation Status 1 | . . 1 . . . . Fabricator Hacks 1 | . . . . . . 1 Network Status 1 | . . . . . . 1 Repair Station Hacks 8 | . 1 2 . 1 . 4 Scan Component 5 | . 1 1 . 1 . 2 Repair 3 | . . 1 . . . 2 Recycling Unit Hacks 3 | . . . . . . 3 Report Inventory 2 | . . . . . . 2 Retrieve Components 1 | . . . . . . 1 Scanalyzer 1 | . . 1 . . . . Insert Component 1 | . . 1 . . . . Garrison Access Hacks 1 | . . . . 1 . . Unlock Access 1 | . . . . 1 . . Unauthorized Hacks 9 | . . 2 4 1 1 1 Terminals 9 | . . 2 4 1 1 1 Assimilate 9 | . . 2 4 1 1 1 Fabricators . | . . . . . . . Repair Stations . | . . . . . . . Recycling Units . | . . . . . . . Scanalyzers . | . . . . . . . Garrison Access . | . . . . . . . Data Cores Recovered . | . . . . . . . Used . | . . . . . . . Hacking Detections 34 | . 6 10 6 6 3 3 Full Trace Events 6 | . 2 . 2 . 1 1 Feedback Events . | . . . . . . . Feedback Blocked . | . . . . . . . Robot Schematics Acquired . | . . . . . . . Robots Built . | . . . . . . . Authchips . | . . . . . . . Time . | . . . . . . . Total Robot Build Rating . | . . . . . . . Part Schematics Acquired . | . . . . . . . Parts Built . | . . . . . . . Authchips . | . . . . . . . Time . | . . . . . . . Total Part Build Rating . | . . . . . . . Parts Repaired 3 | . . 1 . . . 2 Time 129 | . . 32 . . . 97 Parts Recycled . | . . . . . . . Recycled Matter . | . . . . . . . Retrieved Matter . | . . . . . . . Retrieved Components 2 | . . . . . . 2 Parts Scanalyzed 1 | . . 1 . . . . Part Schematics Acquired . | . . . . . . . Parts Damaged 1 | . . 1 . . . . Bothacking | -11 -10 -9 -8 -7 -7 -7 ------------ Run | Yrd Mat Mat Mat Fac Gar Fac Used RIF Installer 1 | . . . . . 1 . Robots Hacked 2 | . . . . . . 2 Non-combat . | . . . . . . . Combat 2 | . . . . . . 2 Robot Hacks Applied 5 | . . . . . . 5 parse_system 1 | . . . . . . 1 scatter_targeting 2 | . . . . . . 2 reboot_system 2 | . . . . . . 2 Relay Couplers Released 21 | . . . . . 21 . Machine Destruction 18 | . . . . . 18 . Programmers 3 | . . . . . 3 . Attached 2 | . . . . . 1 1 Fabnet Peak Effective % . | . . . . . . . Robots Rewired 3 | . . . . . 3 . Allies Hacked 1 | . . . . . 1 . Hacks Repelled . | . . . . . . . Allies | -11 -10 -9 -8 -7 -7 -7 -------- Run | Yrd Mat Mat Mat Fac Gar Fac Total Allies 3 | . . . . . 3 . Largest Group 3 | . . . . . 3 . Highest-Rated Group 95 | . . . . . 95 . Highest-Rated Ally 39 | . . . . . 39 . Total Orders . | . . . . . . . Ally Attacks 16 | . . . . . 16 . Total Damage 303 | . . . . . 303 . Kills 3 | . . . . . 3 . Allies Corrupted 1 | . . . . . 1 . Allies Melted . | . . . . . . . Intel | -11 -10 -9 -8 -7 -7 -7 ------- Run | Yrd Mat Mat Mat Fac Gar Fac Robot Analysis Total 1 | . . . . 1 . . Derelict Logs Recovered . | . . . . . . . Drone Launches . | . . . . . . . Drone Recoveries . | . . . . . . . Exploration | -11 -10 -9 -8 -7 -7 -7 ------------- Run | Yrd Mat Mat Mat Fac Gar Fac Turns Passed 9948 | 65 1151 2191 1378 1517 3021 625 Spaces Moved 6486 | 48 761 1311 711 997 2098 560 Core 385 | 10 . . . . . 375 Treads . | . . . . . . . Legs 6101 | 38 761 1311 711 997 2098 185 Wheels . | . . . . . . . Hover . | . . . . . . . Flight . | . . . . . . . Fastest Speed 50 | 50 120 120 123 120 105 50 Average Speed 119 | 105 120 127 133 132 114 78 Slowest Speed 300 | 120 120 200 195 200 190 300 Overloaded Moves . | . . . . . . . Propulsion Burnouts . | . . . . . . . Robots Hopped . | . . . . . . . Cave-ins Triggered . | . . . . . . . Exploration Rate (%) 49 | 3 92 93 50 21 76 11 Regions Visited 6 Branch Regions . Pre-discovered Areas . | . . . . . . . Known Exits Taken 2 | . 1 . . 1 . . Unknown Exits Taken 3 | 1 . 1 1 . . . Scrap Searched . | . . . . . . . Spaces Dug 4 | . . . . . 4 . Terrain Destroyed 280 | . . 155 8 11 76 30 Melee . | . . . . . . . Projectile 34 | . . 2 8 1 23 . AOE 246 | . . 153 . 10 53 30 Terrain Rammed . | . . . . . . . Walls Destroyed . | . . . . . . . Machines Disabled . | . . . . . . . Actions | -11 -10 -9 -8 -7 -7 -7 --------- Run | Yrd Mat Mat Mat Fac Gar Fac Total 7869 | 59 901 1623 958 1112 2485 731 Wait 472 | . 52 112 116 27 73 92 Move 6479 | 47 760 1310 710 996 2096 560 Hop . | . . . . . . . Pick Up 75 | 6 13 10 9 12 23 2 Fast Attach 75 | 6 2 13 1 12 28 13 Attach 44 | . 1 7 6 8 17 5 Detach 32 | . . 10 . 4 9 9 Swap 36 | . 5 6 7 3 12 3 Drop 103 | . 15 20 13 11 28 16 Fire 486 | . 53 134 93 39 147 20 Melee . | . . . . . . . Ram 2 | . . . . . . 2 Kick 1 | . . 1 . . . . Crush . | . . . . . . . Escape Stasis 9 | . . . . . 9 . Rewire 55 | . . . 3 . 43 9 Trap . | . . . . . . . Miscellaneous . | . . . . . . . Route ------- -11/Scrapyard -10/Materials (discovered 4 exits: *Mat x2 / *Min x2) -9/Materials (discovered 5 exits: *Mat x3 / [*Min x2]) -8/Materials -7/Factory (discovered 2 exits: [*Fac] / Gar) -7/Garrison (discovered 3 exits: *Fac x3) -7/Factory History --------- Turn | Location | Event 6 | -11/Scrapyard | Discovered new exit (range 15) 66 | -11/Scrapyard | Entered Materials 302 | -10/Materials | Build established: Mutant 310 | -10/Materials | Discovered new exit (range 12) 414 | -10/Materials | Identified exit to Materials 793 | -10/Materials | Discovered new exit (range 8) 806 | -10/Materials | Identified exit to Mines 867 | -10/Materials | Build established: Scavenger-Mutant 889 | -10/Materials | Discovered exit to Materials (range 16) 1069 | -10/Materials | Discovered exit to Mines (range 11) 1217 | -10/Materials | Entered another Materials area 1217 | -9/Materials | Evolved 2 slots: Propulsion x1, Utility x1 1560 | -9/Materials | Repaired Shield Generator 1690 | -9/Materials | Discovered new exit (range 10) 1742 | -9/Materials | Discovered new exit (range 16) 2018 | -9/Materials | Discovered new exit (range 15) 2070 | -9/Materials | Build established: Mutant 2734 | -9/Materials | Discovered new exit (range 11) 2778 | -9/Materials | Discovered new exit (range 3) 3408 | -9/Materials | Entered another Materials area 3408 | -8/Materials | Evolved 2 slots: Utility x2 4717 | -8/Materials | Discovered new exit (range 15) 4786 | -8/Materials | Entered Factory 4786 | -7/Factory | Evolved 2 slots: Propulsion x1, Utility x1 5659 | -7/Factory | System corruption reached 10% 6220 | -7/Factory | Discovered new exit (range 11) 6300 | -7/Factory | Identified exit to Garrison 6303 | -7/Factory | Entered Garrison 6384 | -7/Garrison | Triggered checkpoint 6734 | -7/Garrison | Lost 6 parts (1p2n1u2w) 6794 | -7/Garrison | Triggered checkpoint 6809 | -7/Garrison | Core integrity fell below 50% 6918 | -7/Garrison | Garrison Relay disabled 7104 | -7/Garrison | Triggered checkpoint 7106 | -7/Garrison | Triggered checkpoint 7117 | -7/Garrison | Triggered checkpoint 7148 | -7/Garrison | Lost 3 allies 7171 | -7/Garrison | Lost 3 parts (2u1w) 7309 | -7/Garrison | Discovered new exit (range 10) 7335 | -7/Garrison | Triggered checkpoint 7370 | -7/Garrison | Triggered checkpoint 7381 | -7/Garrison | Garrison Relay disabled 7512 | -7/Garrison | Triggered checkpoint 7523 | -7/Garrison | Garrison Relay disabled 7592 | -7/Garrison | Build established: Scavenger-Mutant 7848 | -7/Garrison | Discovered new exit (range 11) 7862 | -7/Garrison | Triggered checkpoint 7914 | -7/Garrison | Lost 3 parts (1n1u1w) 7994 | -7/Garrison | Garrison Relay disabled 8580 | -7/Garrison | Triggered checkpoint 8634 | -7/Garrison | Garrison Relay disabled 8662 | -7/Garrison | Discovered new exit (range 13) 8691 | -7/Garrison | Installed Relay Interface Framework 9324 | -7/Garrison | Entered Factory 9462 | -7/Factory | Repaired Remote Datajack 9517 | -7/Factory | Repaired Corrupted Carbon-fiber Leg 9573 | -7/Factory | Core integrity fell below 20% 9605 | -7/Factory | Lost 4 parts (1p2n1w) 9724 | -7/Factory | First assault squad dispatched 9949 | -7/Factory | Destroyed by G-47 Trooper with Particle Gun Last Messages --------------- Testing... System interface override in place. 09878_ ALERT: Suspicious activity at Terminal F003. Dispatching Investigation squad. 09882_ O-24 Administrator: "IFF HANDSHAKE FAILED. SECURING TERMINAL." 09886_ ALERT: Hostiles spotted, dispatching reinforcements to Terminal F009. 09889_ Acquired Unknown Device. 09889_ Identified Imp. Terrain Scanner. 09891_ Dropped Imp. Terrain Scanner. 09899_ : 09933_ Imp. Armor Integrity Analyzer broken. 09933_ Destabilizing: Short circuit. 09936_ Discarded Broken Imp. Armor Integrity Analyzer. 09938_ System corrupted: Component data lost. 09943_ Slug penetrates Wall. Map ----- +----------------------------------------------------+ | | | | | | | | | | | | | | | ???????################??????????????????????????? | | ???????# [ """"" #??????????????????????????? | | ???????# ""T"" #??????????????????????????? | | ???????# #??????????????????????????? | | ???????# """"""""" #??????????????????????????? | | ######## #??????????????????????????? | | ! ## #??????????????????????????? | | "" ##/####+#+#######??????????????????????????? | | "" ## #??# #???????????????????????????? | | "" ## #??# h #???????????????????????????? | | "" ## #### #???????????????????????????? | | # #???????????????????????????? | | + #???????????????????????????? | | # """ #???###########?????????????? | | [ ## "T" ##### #?????????????? | | ######## ! " " + """ """ ??????????????? | | ???????# # """ """ #?????????????? | | ???????# g # """ """ #?????????????? | | ???????# g @ #?????????????? | | ???????# h # #?????????????? | | ???????# """ """" # #?????????????? | | ???????# """ """" # [ #?????????????? | | ???????+ """ """" ###########?????????????? | | ???????# """ """" #???????????????????????? | | ???????# """" #???????????????????????? | | ???????# """" #?????????????########??? | | ???????# """" #?????????????# ??? | | ???????# #?????????????# """"??? | | ?????### ############### """"??? | | ??? """"""""""" # """"??? | | ??? """"T"""" # """" ?? | | ???????"" "" "" "" """ # """" ?? | | ????????" "" "" "" """ + """" ?? | | ????" """ """ """ """ """ # """" ?? | | ???"" """ """ """ """ # #? | | ??""" """ """ """ ########### | | | | | | | | | | | | !############+### ^ #####+############ | | # # # # #???? | +----------------------------------------------------+ Best States ------------- Heat Dissipation 48 Energy Generation 21 Energy Capacity 800 Matter Stores 300 Matter Capacity 300 Sight Range 16 Terrain Scan Density 10 Armor Coverage 450 Evasion (%) 55 Targeting Accuracy 16 Target Analysis 5 Core Analysis 6 Armor Integrity Analysis 40 Offensive Hacking 10 Defensive Hacking 10 Relay Coupler Types 2 Relay Coupler Value 43 Item Schematics ----------------- None Robot Schematics ------------------ None Fabricated ------------ Nothing Alien Tech Used ----------------- None Achievements -------------- Factory Defaults Challenges ------------ None Game ------ Seed MinesnifferProtonInitializer Manual? 0 Play Time 01:34:06 Cumulative 83.3 hours Start 2024.03.08 @ 13:13:58 End 2024.03.09 @ 15:13:59 Sessions 9 Manual Loads 0 Difficulty Rogue Special Mode None Game No. 84 Rogue 84 Adventurer 0 Explorer 0 Win Type - Total 0 Types 0/0/0/0/0/0/0/0/0 Lore% 32 Gallery% 47 Achievement% 32 Wizard Run 0 Options --------- Layout 2 ASCII 1 Keyboard 1 Movement Numpad Keybinds 0 Fullscreen 2 Font 32/TamsynBold Map View 50x44 Zoom Use 0% Tactical HUD 1 Map Filters NONE Filters NONE Steam 1 RUN: 2d86c35a-1b60-4177-ae1e-a24770c098bf